[Event "World Junior Chess Championship U20 2022"]
[White "Kacharava, Nikolozi"]
[Black "Svane, Frederik"]
[WhiteFideId "13611860"]
[BlackFideId "12923044"]
[WhiteElo "2512"]
[BlackElo "2566"]
[Result "1/2-1/2"]
[Round "05"]
[TimeControl "5400+30"]
[Date "2022.10.15"]
[WhiteClock "0:13:48"]
[BlackClock "0:19:49"]

1. e4 {[%clk 1:30:40]}  c5 {[%clk 1:30:48]} 2. Nf3 {[%clk 1:30:32]}  d6 {[%clk 1:30:39]} 3. d4 {[%clk 1:30:27]}  cxd4 {[%clk 1:31:02]} 4. Nxd4 {[%clk 1:30:09]}  Nf6 {[%clk 1:31:23]} 5. Nc3 {[%clk 1:30:02]}  Nc6 {[%clk 1:31:29]} 6. Bg5 {[%clk 1:29:34]}  e6 {[%clk 1:31:17]} 7. Qd3 {[%clk 1:28:56]}  Bd7 {[%clk 1:31:40]} 8. O-O-O {[%clk 1:28:30]}  a6 {[%clk 1:32:04]} 9. f4 {[%clk 1:28:26]}  Be7 {[%clk 1:32:25]} 10. Nf3 {[%clk 1:25:45]}  Qa5 {[%clk 1:31:40]} 11. Kb1 {[%clk 1:24:42]}  Rc8 {[%clk 1:27:26]} 12. Bxf6 {[%clk 1:22:38]}  gxf6 {[%clk 1:27:41]} 13. Qe3 {[%clk 1:22:14]}  b5 {[%clk 1:24:52]} 14. f5 {[%clk 1:11:10]}  h5 {[%clk 1:05:53]} 15. fxe6 {[%clk 1:07:14]}  fxe6 {[%clk 1:06:03]} 16. Bd3 {[%clk 0:48:30]}  Nb4 {[%clk 0:40:33]} 17. e5 {[%clk 0:31:54]}  Rxc3 {[%clk 0:39:45]} 18. Bg6+ {[%clk 0:29:49]}  Kd8 {[%clk 0:40:05]} 19. Qxc3 {[%clk 0:29:31]}  Qxa2+ {[%clk 0:39:06]} 20. Kc1 {[%clk 0:29:54]}  Bf8 {[%clk 0:37:04]} 21. Qa3 {[%clk 0:18:27]}  dxe5 {[%clk 0:34:29]} 22. Qxa2 {[%clk 0:13:57]}  Nxa2+ {[%clk 0:34:57]} 23. Kb1 {[%clk 0:13:23]}  Nb4 {[%clk 0:35:23]} 24. h3 {[%clk 0:11:36]}  Kc7 {[%clk 0:26:01]} 25. g4 {[%clk 0:05:42]}  Bc6 {[%clk 0:21:46]} 26. Rhf1 {[%clk 0:06:02]}  Nd5 {[%clk 0:20:45]} 27. Rde1 {[%clk 0:04:14]}  Bd6 {[%clk 0:07:11]} 28. Be4 {[%clk 0:03:59]}  hxg4 {[%clk 0:07:10]} 29. hxg4 {[%clk 0:04:27]}  Rg8 {[%clk 0:07:22]} 30. Nd2 {[%clk 0:02:08]}  Be7 {[%clk 0:05:30]} 31. Bf3 {[%clk 0:02:10]}  Nf4 {[%clk 0:05:34]} 32. Ne4 {[%clk 0:00:51]}  Rg7 {[%clk 0:03:30]} 33. b3 {[%clk 0:00:35]}  Bb4 {[%clk 0:01:49]} 34. Re3 {[%clk 0:00:37]}  Nd5 {[%clk 0:00:46]} 35. Rd3 {[%clk 0:00:33]}  Rg6 {[%clk 0:01:05]} 36. c3 {[%clk 0:00:42]}  Be7 {[%clk 0:01:04]} 37. c4 {[%clk 0:00:43]}  Nb4 {[%clk 0:00:57]} 38. Rc3 {[%clk 0:00:57]}  f5 {[%clk 0:01:00]} 39. cxb5 {[%clk 0:01:07]}  axb5 {[%clk 0:01:15]} 40. gxf5 {[%clk 0:00:43]}  exf5 {[%clk 0:01:34]} 41. Bh5 {[%clk 0:24:20]}  Rg2 {[%clk 0:25:01]} 42. Rxf5 {[%clk 0:22:47]}  Nd5 {[%clk 0:20:50]} 43. Rxc6+ {[%clk 0:15:09]}  Kxc6 {[%clk 0:21:13]} 44. Rxe5 {[%clk 0:13:48]}  Rg1+ {[%clk 0:19:49]} 1/2-1/2


[Site "http://www.chessbomb.com"]

[Event "World Junior Chess Championship U20 2022"]
[White "Gadimbayli, Abdulla"]
[Black "Murzin, Volodar"]
[WhiteFideId "13404938"]
[BlackFideId "44155573"]
[WhiteElo "2499"]
[BlackElo "2557"]
[Result "1/2-1/2"]
[Round "05"]
[TimeControl "5400+30"]
[Date "2022.10.15"]
[WhiteClock "0:33:33"]
[BlackClock "0:57:06"]

1. e4 {[%clk 1:30:54]}  c6 {[%clk 1:30:52]} 2. Nc3 {[%clk 1:30:24]}  d5 {[%clk 1:31:11]} 3. Nf3 {[%clk 1:30:13]}  dxe4 {[%clk 1:31:24]} 4. Nxe4 {[%clk 1:30:37]}  Nf6 {[%clk 1:31:49]} 5. Qe2 {[%clk 1:29:57]}  Nxe4 {[%clk 1:32:10]} 6. Qxe4 {[%clk 1:30:22]}  Be6 {[%clk 1:32:32]} 7. b3 {[%clk 1:30:43]}  Nd7 {[%clk 1:32:33]} 8. Bc4 {[%clk 1:30:05]}  Nf6 {[%clk 1:32:27]} 9. Qe2 {[%clk 1:27:57]}  Bd5 {[%clk 1:30:37]} 10. Ne5 {[%clk 1:16:48]}  g6 {[%clk 1:26:38]} 11. Bb2 {[%clk 1:11:01]}  Bg7 {[%clk 1:26:22]} 12. O-O {[%clk 0:57:31]}  O-O {[%clk 1:19:53]} 13. d4 {[%clk 0:52:58]}  Bxc4 {[%clk 1:13:12]} 14. Nxc4 {[%clk 0:50:45]}  Qc7 {[%clk 1:08:50]} 15. Ne5 {[%clk 0:43:24]}  Rfd8 {[%clk 0:58:05]} 16. Rad1 {[%clk 0:38:02]}  Nd7 {[%clk 0:56:15]} 17. Ng4 {[%clk 0:31:52]}  Nf6 {[%clk 0:55:58]} 18. Ne5 {[%clk 0:32:13]}  Nd7 {[%clk 0:56:17]} 19. Ng4 {[%clk 0:32:39]}  Nf6 {[%clk 0:56:42]} 20. Ne5 {[%clk 0:33:07]}  Nd7 {[%clk 0:57:06]} 21. Ng4 {[%clk 0:33:33]}  Nf6 {[%clk 0:57:06]} 1/2-1/2


[Site "http://www.chessbomb.com"]

[Event "World Junior Chess Championship U20 2022"]
[White "Samunenkov, Ihor"]
[Black "Sonis, Francesco"]
[WhiteFideId "14187086"]
[BlackFideId "895733"]
[WhiteElo "2473"]
[BlackElo "2531"]
[Result "1/2-1/2"]
[Round "05"]
[TimeControl "5400+30"]
[Date "2022.10.15"]
[WhiteClock "0:24:09"]
[BlackClock "0:19:02"]

1. d4 {[%clk 1:30:57]}  Nf6 {[%clk 1:30:52]} 2. c4 {[%clk 1:31:20]}  e6 {[%clk 1:31:14]} 3. Nc3 {[%clk 1:31:46]}  Bb4 {[%clk 1:31:40]} 4. e3 {[%clk 1:32:06]}  O-O {[%clk 1:32:04]} 5. Bd2 {[%clk 1:32:25]}  d5 {[%clk 1:32:28]} 6. Nf3 {[%clk 1:32:44]}  b6 {[%clk 1:32:54]} 7. cxd5 {[%clk 1:32:52]}  exd5 {[%clk 1:33:17]} 8. Bd3 {[%clk 1:33:16]}  Bb7 {[%clk 1:33:36]} 9. Qc2 {[%clk 1:33:29]}  Re8 {[%clk 1:26:16]} 10. a3 {[%clk 1:17:50]}  Bxc3 {[%clk 1:15:31]} 11. Bxc3 {[%clk 1:15:48]}  Ba6 {[%clk 1:10:29]} 12. Bxa6 {[%clk 1:06:24]}  Nxa6 {[%clk 1:10:51]} 13. Qa4 {[%clk 1:03:15]}  Qc8 {[%clk 1:09:17]} 14. Rc1 {[%clk 1:03:09]}  Qb7 {[%clk 1:06:52]} 15. O-O {[%clk 0:56:49]}  Rac8 {[%clk 1:04:56]} 16. b4 {[%clk 0:55:26]}  c6 {[%clk 1:02:13]} 17. b5 {[%clk 0:47:02]}  cxb5 {[%clk 0:59:35]} 18. Qxb5 {[%clk 0:47:27]}  Ne4 {[%clk 0:53:30]} 19. Ne5 {[%clk 0:38:24]}  Nd6 {[%clk 0:45:30]} 20. Qa4 {[%clk 0:31:42]}  f6 {[%clk 0:39:52]} 21. Bb4 {[%clk 0:26:10]}  Nxb4 {[%clk 0:27:22]} 22. Qxb4 {[%clk 0:25:54]}  Red8 {[%clk 0:21:44]} 23. Nd3 {[%clk 0:21:37]}  Rc4 {[%clk 0:20:13]} 24. Rxc4 {[%clk 0:21:04]}  dxc4 {[%clk 0:19:47]} 25. Nf4 {[%clk 0:21:21]}  Qd7 {[%clk 0:16:42]} 26. a4 {[%clk 0:16:48]}  Rc8 {[%clk 0:16:40]} 27. Rc1 {[%clk 0:14:16]}  Qc6 {[%clk 0:16:23]} 28. f3 {[%clk 0:11:54]}  f5 {[%clk 0:12:53]} 29. Kf2 {[%clk 0:11:12]}  Qd7 {[%clk 0:11:59]} 30. Nd5 {[%clk 0:10:12]}  Qe6 {[%clk 0:11:07]} 31. Nc3 {[%clk 0:08:10]}  Re8 {[%clk 0:09:26]} 32. Re1 {[%clk 0:07:50]}  Qe7 {[%clk 0:06:00]} 33. Kg1 {[%clk 0:06:56]}  Qe6 {[%clk 0:03:05]} 34. h3 {[%clk 0:06:53]}  h6 {[%clk 0:02:37]} 35. e4 {[%clk 0:04:27]}  fxe4 {[%clk 0:02:16]} 36. fxe4 {[%clk 0:04:52]}  Kh8 {[%clk 0:02:20]} 37. e5 {[%clk 0:04:28]}  Qg6 {[%clk 0:02:04]} 38. Nd5 {[%clk 0:03:20]}  Nf5 {[%clk 0:02:20]} 39. Qxc4 {[%clk 0:03:32]}  Qe6 {[%clk 0:02:03]} 40. Qd3 {[%clk 0:00:35]}  Qxd5 {[%clk 0:02:26]} 41. Qxf5 {[%clk 0:01:01]}  Qxd4+ {[%clk 0:02:50]} 42. Kh2 {[%clk 0:25:38]}  Qxa4 {[%clk 0:28:36]} 43. Qf7 {[%clk 0:25:10]}  Kh7 {[%clk 0:24:06]} 44. e6 {[%clk 0:24:38]}  Qb4 {[%clk 0:18:36]} 45. Qxe8 {[%clk 0:24:16]}  Qxe1 {[%clk 0:19:02]} 46. e7 {[%clk 0:24:09]} 1/2-1/2


[Site "http://www.chessbomb.com"]

[Event "World Junior Chess Championship U20 2022"]
[White "Ivic, Velimir"]
[Black "Kosakowski, Jakub"]
[WhiteFideId "950122"]
[BlackFideId "1185080"]
[WhiteElo "2553"]
[BlackElo "2465"]
[Result "1/2-1/2"]
[Round "05"]
[TimeControl "5400+30"]
[Date "2022.10.15"]
[WhiteClock "0:08:35"]
[BlackClock "0:04:15"]

1. e4 {[%clk 1:30:53]}  c6 {[%clk 1:30:43]} 2. d4 {[%clk 1:30:17]}  d5 {[%clk 1:31:04]} 3. Nd2 {[%clk 1:30:01]}  dxe4 {[%clk 1:30:59]} 4. Nxe4 {[%clk 1:30:24]}  Nf6 {[%clk 1:31:19]} 5. Nxf6+ {[%clk 1:30:29]}  exf6 {[%clk 1:31:40]} 6. c3 {[%clk 1:30:25]}  Bd6 {[%clk 1:31:27]} 7. Bd3 {[%clk 1:30:43]}  O-O {[%clk 1:31:19]} 8. Ne2 {[%clk 1:30:49]}  Re8 {[%clk 1:29:53]} 9. Qc2 {[%clk 1:31:03]}  f5 {[%clk 1:28:17]} 10. Bxf5 {[%clk 1:28:25]}  Bxf5 {[%clk 1:27:44]} 11. Qxf5 {[%clk 1:28:51]}  Nd7 {[%clk 1:27:29]} 12. Be3 {[%clk 1:26:31]}  Nb6 {[%clk 1:26:47]} 13. O-O {[%clk 1:25:07]}  Nc4 {[%clk 1:26:01]} 14. b3 {[%clk 1:24:53]}  g6 {[%clk 1:26:12]} 15. Qd3 {[%clk 1:21:07]}  Nxe3 {[%clk 1:26:22]} 16. fxe3 {[%clk 1:21:33]}  f5 {[%clk 1:26:30]} 17. Rf3 {[%clk 1:17:04]}  Qe7 {[%clk 0:58:15]} 18. c4 {[%clk 1:13:06]}  Rad8 {[%clk 0:56:57]} 19. c5 {[%clk 1:09:05]}  Bc7 {[%clk 0:56:06]} 20. Rd1 {[%clk 1:07:11]}  Kg7 {[%clk 0:52:58]} 21. b4 {[%clk 1:06:10]}  Rd7 {[%clk 0:45:37]} 22. b5 {[%clk 0:57:11]}  Qe6 {[%clk 0:41:07]} 23. a4 {[%clk 0:54:53]}  Qf7 {[%clk 0:32:18]} 24. a5 {[%clk 0:33:59]}  Bxa5 {[%clk 0:29:39]} 25. Ra1 {[%clk 0:22:16]}  Bb4 {[%clk 0:25:46]} 26. Qc2 {[%clk 0:13:48]}  cxb5 {[%clk 0:24:21]} 27. Rxa7 {[%clk 0:13:54]}  Qc4 {[%clk 0:23:10]} 28. Ra2 {[%clk 0:11:44]}  b6 {[%clk 0:09:01]} 29. c6 {[%clk 0:07:58]}  Rc7 {[%clk 0:09:11]} 30. Qxc4 {[%clk 0:07:56]}  bxc4 {[%clk 0:09:37]} 31. Rb2 {[%clk 0:08:20]}  Ba5 {[%clk 0:07:00]} 32. d5 {[%clk 0:08:28]}  Re5 {[%clk 0:05:15]} 33. Rb5 {[%clk 0:07:05]}  Kf6 {[%clk 0:04:09]} 34. Kf2 {[%clk 0:01:19]}  Ke7 {[%clk 0:03:16]} 35. Rf4 {[%clk 0:00:37]}  Kd6 {[%clk 0:02:53]} 36. Rxc4 {[%clk 0:00:39]}  Rce7 {[%clk 0:00:34]} 37. Rb3 {[%clk 0:00:37]}  Rxd5 {[%clk 0:00:45]} 38. Nd4 {[%clk 0:00:31]}  Rc5 {[%clk 0:00:56]} 39. Ra4 {[%clk 0:00:52]}  Re4 {[%clk 0:00:35]} 40. Kf3 {[%clk 0:00:31]}  Rxc6 {[%clk 0:00:31]} 41. Rd3 {[%clk 0:27:51]}  Kc7 {[%clk 0:26:55]} 42. Nb5+ {[%clk 0:27:34]}  Kb7 {[%clk 0:26:12]} 43. Rxe4 {[%clk 0:26:48]}  fxe4+ {[%clk 0:26:35]} 44. Kxe4 {[%clk 0:27:14]}  Ka6 {[%clk 0:22:57]} 45. Rb3 {[%clk 0:24:33]}  Rc2 {[%clk 0:22:20]} 46. Nd6 {[%clk 0:19:47]}  Rxg2 {[%clk 0:21:37]} 47. Kd5 {[%clk 0:19:51]}  Rxh2 {[%clk 0:19:57]} 48. e4 {[%clk 0:20:01]}  Rd2+ {[%clk 0:16:13]} 49. Ke6 {[%clk 0:20:20]}  Rd4 {[%clk 0:16:23]} 50. Ra3 {[%clk 0:07:34]}  b5 {[%clk 0:14:25]} 51. e5 {[%clk 0:07:40]}  b4 {[%clk 0:13:27]} 52. Rh3 {[%clk 0:06:56]}  Bc7 {[%clk 0:04:57]} 53. Rxh7 {[%clk 0:07:18]}  Bxd6 {[%clk 0:04:18]} 54. exd6 {[%clk 0:07:43]}  Kb5 {[%clk 0:04:35]} 55. Rh8 {[%clk 0:06:53]}  b3 {[%clk 0:03:23]} 56. d7 {[%clk 0:07:09]}  Rxd7 {[%clk 0:03:03]} 57. Kxd7 {[%clk 0:07:34]}  Kc4 {[%clk 0:03:28]} 58. Ke6 {[%clk 0:07:54]}  b2 {[%clk 0:03:50]} 59. Rb8 {[%clk 0:08:12]}  Kc3 {[%clk 0:04:15]} 60. Rxb2 {[%clk 0:08:35]} 1/2-1/2


[Site "http://www.chessbomb.com"]

[Event "World Junior Chess Championship U20 2022"]
[White "Stefansson, Vignir Vatnar"]
[Black "Batsuren, Dambasuren"]
[WhiteFideId "2308649"]
[BlackFideId "4902920"]
[WhiteElo "2471"]
[BlackElo "2522"]
[Result "0-1"]
[Round "05"]
[TimeControl "5400+30"]
[Date "2022.10.15"]
[WhiteClock "0:30:19"]
[BlackClock "0:21:16"]

1. c4 {[%clk 1:27:54]}  e6 {[%clk 1:30:47]} 2. Nc3 {[%clk 1:28:06]}  d5 {[%clk 1:30:24]} 3. d4 {[%clk 1:28:29]}  a6 {[%clk 1:26:29]} 4. c5 {[%clk 1:24:25]}  b6 {[%clk 1:14:18]} 5. cxb6 {[%clk 1:24:49]}  c5 {[%clk 1:14:22]} 6. Na4 {[%clk 1:10:55]}  cxd4 {[%clk 1:06:53]} 7. Nf3 {[%clk 1:08:25]}  Nd7 {[%clk 0:52:05]} 8. Qxd4 {[%clk 1:06:04]}  Ne7 {[%clk 0:50:34]} 9. Bd2 {[%clk 0:55:04]}  Nc6 {[%clk 0:33:46]} 10. Qc3 {[%clk 0:47:49]}  Bb7 {[%clk 0:33:37]} 11. Rc1 {[%clk 0:48:05]}  Rc8 {[%clk 0:32:17]} 12. Qb3 {[%clk 0:47:49]}  Bd6 {[%clk 0:25:08]} 13. e3 {[%clk 0:47:33]}  Nce5 {[%clk 0:24:52]} 14. Nxe5 {[%clk 0:43:25]}  Rxc1+ {[%clk 0:25:07]} 15. Bxc1 {[%clk 0:43:51]}  Bxe5 {[%clk 0:25:13]} 16. Be2 {[%clk 0:39:15]}  Qh4 {[%clk 0:21:08]} 17. h3 {[%clk 0:34:53]}  d4 {[%clk 0:16:56]} 18. exd4 {[%clk 0:26:23]}  Bxg2 {[%clk 0:11:24]} 19. Rg1 {[%clk 0:20:06]}  Bd5 {[%clk 0:11:43]} 20. Qb4 {[%clk 0:15:43]}  a5 {[%clk 0:10:38]} 21. Qb5 {[%clk 0:14:21]}  Bxd4 {[%clk 0:09:51]} 22. Rg3 {[%clk 0:14:40]}  Qe4 {[%clk 0:08:37]} 23. Be3 {[%clk 0:09:51]}  Bc6 {[%clk 0:03:02]} 24. Qc4 {[%clk 0:10:14]}  Qh1+ {[%clk 0:01:53]} 25. Kd2 {[%clk 0:10:20]}  Bxe3+ {[%clk 0:02:08]} 26. Rxe3 {[%clk 0:10:44]}  O-O {[%clk 0:02:12]} 27. Bd3 {[%clk 0:08:58]}  Bxa4 {[%clk 0:01:14]} 28. Qxa4 {[%clk 0:08:50]}  Nxb6 {[%clk 0:01:41]} 29. Qxa5 {[%clk 0:07:07]}  Nd5 {[%clk 0:02:00]} 30. Rg3 {[%clk 0:07:00]}  Rc8 {[%clk 0:02:11]} 31. Bc4 {[%clk 0:05:57]}  Qe4 {[%clk 0:01:57]} 32. b3 {[%clk 0:06:21]}  Qf4+ {[%clk 0:00:59]} 33. Ke2 {[%clk 0:06:13]}  Qe5+ {[%clk 0:01:14]} 34. Kd2 {[%clk 0:06:15]}  Qf4+ {[%clk 0:00:53]} 35. Ke2 {[%clk 0:06:41]}  Qe5+ {[%clk 0:01:12]} 36. Kd2 {[%clk 0:07:08]}  Qb2+ {[%clk 0:01:35]} 37. Ke1 {[%clk 0:07:05]}  Nf4 {[%clk 0:01:33]} 38. Kf1 {[%clk 0:05:26]}  Qc1+ {[%clk 0:00:38]} 39. Qe1 {[%clk 0:05:47]}  Rxc4 {[%clk 0:01:03]} 40. bxc4 {[%clk 0:05:12]}  Qxc4+ {[%clk 0:01:29]} 41. Kg1 {[%clk 0:05:30]}  Ne2+ {[%clk 0:01:34]} 42. Kg2 {[%clk 0:05:08]}  Qd5+ {[%clk 0:23:14]} 43. Kh2 {[%clk 0:29:28]}  Nxg3 {[%clk 0:23:28]} 44. Qb1 {[%clk 0:29:51]}  Nf1+ {[%clk 0:22:16]} 45. Kg1 {[%clk 0:30:19]}  h5 {[%clk 0:21:16]} 0-1


[Site "http://www.chessbomb.com"]

[Event "World Junior Chess Championship U20 2022"]
[White "Droin, Augustin"]
[Black "Davtyan, Artur"]
[WhiteFideId "45105987"]
[BlackFideId "13308327"]
[WhiteElo "2416"]
[BlackElo "2517"]
[Result "1-0"]
[Round "05"]
[TimeControl "5400+30"]
[Date "2022.10.15"]
[WhiteClock "0:41:20"]
[BlackClock "0:00:34"]

1. e4 {[%clk 1:29:21]}  e5 {[%clk 1:29:39]} 2. Nf3 {[%clk 1:29:44]}  Nc6 {[%clk 1:29:42]} 3. Bc4 {[%clk 1:30:01]}  Bc5 {[%clk 1:29:07]} 4. d3 {[%clk 1:30:05]}  Nf6 {[%clk 1:28:19]} 5. h3 {[%clk 1:30:30]}  O-O {[%clk 1:26:11]} 6. Nc3 {[%clk 1:30:07]}  a6 {[%clk 1:22:18]} 7. a3 {[%clk 1:22:51]}  h6 {[%clk 1:21:47]} 8. g4 {[%clk 1:18:00]}  Nh7 {[%clk 1:16:29]} 9. g5 {[%clk 1:10:47]}  hxg5 {[%clk 0:45:25]} 10. Rg1 {[%clk 1:09:09]}  g4 {[%clk 0:33:44]} 11. hxg4 {[%clk 1:06:52]}  d6 {[%clk 0:33:03]} 12. Qe2 {[%clk 0:57:03]}  Be6 {[%clk 0:29:34]} 13. Bd2 {[%clk 0:50:40]}  b5 {[%clk 0:23:59]} 14. Bd5 {[%clk 0:50:44]}  Qd7 {[%clk 0:13:39]} 15. Rh1 {[%clk 0:39:18]}  Nd4 {[%clk 0:05:57]} 16. Nxd4 {[%clk 0:39:34]}  exd4 {[%clk 0:06:22]} 17. f4 {[%clk 0:34:28]}  dxc3 {[%clk 0:05:56]} 18. Qh2 {[%clk 0:34:55]}  cxd2+ {[%clk 0:06:19]} 19. Kxd2 {[%clk 0:35:22]}  Rfe8 {[%clk 0:03:03]} 20. Qxh7+ {[%clk 0:35:45]}  Kf8 {[%clk 0:03:30]} 21. Bxa8 {[%clk 0:36:08]}  f6 {[%clk 0:01:07]} 22. Qh8+ {[%clk 0:34:42]}  Kf7 {[%clk 0:01:36]} 23. Qh5+ {[%clk 0:35:06]}  Ke7 {[%clk 0:01:37]} 24. Bd5 {[%clk 0:35:33]}  Bxg4 {[%clk 0:02:02]} 25. Qf7+ {[%clk 0:34:16]}  Kd8 {[%clk 0:02:30]} 26. Qxd7+ {[%clk 0:33:37]}  Bxd7 {[%clk 0:02:58]} 27. Bf7 {[%clk 0:30:36]}  Rf8 {[%clk 0:03:13]} 28. Bg6 {[%clk 0:31:01]}  f5 {[%clk 0:03:40]} 29. Bxf5 {[%clk 0:28:01]}  Bxf5 {[%clk 0:04:06]} 30. exf5 {[%clk 0:28:28]}  Rxf5 {[%clk 0:04:28]} 31. Raf1 {[%clk 0:28:45]}  Bd4 {[%clk 0:04:20]} 32. c3 {[%clk 0:29:11]}  Bf6 {[%clk 0:04:49]} 33. Ke3 {[%clk 0:29:19]}  Kd7 {[%clk 0:05:14]} 34. Kf3 {[%clk 0:29:32]}  a5 {[%clk 0:01:40]} 35. d4 {[%clk 0:28:03]}  b4 {[%clk 0:01:35]} 36. a4 {[%clk 0:27:29]}  bxc3 {[%clk 0:00:43]} 37. Ke4 {[%clk 0:27:31]}  g6 {[%clk 0:00:36]} 38. bxc3 {[%clk 0:27:33]}  Ke6 {[%clk 0:00:32]} 39. Rfg1 {[%clk 0:26:23]}  d5+ {[%clk 0:00:36]} 40. Ke3 {[%clk 0:26:47]}  g5 {[%clk 0:00:41]} 41. fxg5 {[%clk 0:26:50]}  Bxg5+ {[%clk 0:01:10]} 42. Ke2 {[%clk 0:27:14]}  Bf6 {[%clk 0:13:54]} 43. Rf1 {[%clk 0:57:08]}  Rxf1 {[%clk 0:14:23]} 44. Rxf1 {[%clk 0:57:35]}  c6 {[%clk 0:13:50]} 45. Rb1 {[%clk 0:51:59]}  Kd6 {[%clk 0:13:59]} 46. Rb8 {[%clk 0:47:55]}  Kc7 {[%clk 0:14:04]} 47. Rf8 {[%clk 0:48:19]}  Bh4 {[%clk 0:13:17]} 48. Rf7+ {[%clk 0:43:58]}  Kb6 {[%clk 0:13:20]} 49. Rh7 {[%clk 0:41:36]}  Bg5 {[%clk 0:12:16]} 50. Rg7 {[%clk 0:41:54]}  Bf4 {[%clk 0:10:58]} 51. Rg4 {[%clk 0:41:48]}  Bc1 {[%clk 0:10:40]} 52. Kd3 {[%clk 0:40:49]}  Kc7 {[%clk 0:10:46]} 53. Rg1 {[%clk 0:41:01]}  Bf4 {[%clk 0:10:20]} 54. Rb1 {[%clk 0:40:29]}  Bg5 {[%clk 0:10:29]} 55. Ke2 {[%clk 0:40:09]}  Bh6 {[%clk 0:10:30]} 56. Rb2 {[%clk 0:40:06]}  Bg7 {[%clk 0:02:56]} 57. Ke3 {[%clk 0:40:31]}  Bh6+ {[%clk 0:02:41]} 58. Kf3 {[%clk 0:40:58]}  Kd6 {[%clk 0:03:01]} 59. Kg4 {[%clk 0:40:19]}  Ke6 {[%clk 0:02:51]} 60. Re2+ {[%clk 0:40:39]}  Kd6 {[%clk 0:02:40]} 61. Kf5 {[%clk 0:40:32]}  Bc1 {[%clk 0:03:09]} 62. Kf6 {[%clk 0:40:18]}  Bf4 {[%clk 0:02:08]} 63. Kf7 {[%clk 0:40:33]}  Bg5 {[%clk 0:02:33]} 64. Ke8 {[%clk 0:40:16]}  Bh4 {[%clk 0:01:28]} 65. Rh2 {[%clk 0:40:30]}  Be1 {[%clk 0:00:32]} 66. Kd8 {[%clk 0:40:53]}  Ke6 {[%clk 0:00:34]} 67. Re2+ {[%clk 0:41:20]} 1-0


[Site "http://www.chessbomb.com"]

[Event "World Junior Chess Championship U20 2022"]
[White "Petkov, Momchil"]
[Black "Jakab, Bela"]
[WhiteFideId "2921642"]
[BlackFideId "14933128"]
[WhiteElo "2511"]
[BlackElo "2353"]
[Result "1-0"]
[Round "05"]
[TimeControl "5400+30"]
[Date "2022.10.15"]
[WhiteClock "0:16:06"]
[BlackClock "0:11:12"]

1. e4 {[%clk 1:30:55]}  e6 {[%clk 1:30:53]} 2. d4 {[%clk 1:31:09]}  d5 {[%clk 1:31:18]} 3. e5 {[%clk 1:31:28]}  c5 {[%clk 1:31:43]} 4. c3 {[%clk 1:31:50]}  Nc6 {[%clk 1:32:04]} 5. Nf3 {[%clk 1:32:10]}  Qb6 {[%clk 1:32:19]} 6. a3 {[%clk 1:32:02]}  Bd7 {[%clk 1:31:36]} 7. b4 {[%clk 1:32:02]}  cxd4 {[%clk 1:31:55]} 8. cxd4 {[%clk 1:32:26]}  Rc8 {[%clk 1:32:07]} 9. Be3 {[%clk 1:32:37]}  Nge7 {[%clk 1:22:46]} 10. Bd3 {[%clk 1:32:47]}  Nf5 {[%clk 1:20:10]} 11. Bxf5 {[%clk 1:33:01]}  exf5 {[%clk 1:20:39]} 12. O-O {[%clk 1:32:47]}  Be7 {[%clk 1:20:08]} 13. Nc3 {[%clk 1:31:39]}  Be6 {[%clk 1:19:32]} 14. Ne2 {[%clk 1:28:50]}  h6 {[%clk 1:15:02]} 15. Qd3 {[%clk 1:26:00]}  Qd8 {[%clk 1:04:07]} 16. Bd2 {[%clk 1:21:25]}  O-O {[%clk 0:57:01]} 17. b5 {[%clk 1:00:05]}  Na5 {[%clk 0:46:15]} 18. Ng3 {[%clk 0:59:19]}  Nc4 {[%clk 0:46:29]} 19. Nxf5 {[%clk 0:54:23]}  Bxf5 {[%clk 0:45:55]} 20. Qxf5 {[%clk 0:51:27]}  Nxd2 {[%clk 0:36:59]} 21. Nxd2 {[%clk 0:51:51]}  Qa5 {[%clk 0:36:01]} 22. Nf3 {[%clk 0:49:50]}  Qxb5 {[%clk 0:22:35]} 23. e6 {[%clk 0:50:13]}  f6 {[%clk 0:21:48]} 24. Nh4 {[%clk 0:39:05]}  Rc7 {[%clk 0:14:45]} 25. Qg4 {[%clk 0:37:23]}  Qd3 {[%clk 0:06:20]} 26. Nf5 {[%clk 0:37:08]}  g5 {[%clk 0:06:39]} 27. Nxh6+ {[%clk 0:18:02]}  Kg7 {[%clk 0:07:08]} 28. Nf5+ {[%clk 0:18:13]}  Kg6 {[%clk 0:07:30]} 29. Nh4+ {[%clk 0:18:25]}  Kg7 {[%clk 0:07:45]} 30. Nf5+ {[%clk 0:16:51]}  Kg6 {[%clk 0:08:14]} 31. Rac1 {[%clk 0:16:48]}  Bd8 {[%clk 0:04:20]} 32. e7 {[%clk 0:15:47]}  Rxe7 {[%clk 0:04:48]} 33. Nxe7+ {[%clk 0:16:07]}  Bxe7 {[%clk 0:05:16]} 34. Qd7 {[%clk 0:13:24]}  Rf7 {[%clk 0:05:09]} 35. Qxd5 {[%clk 0:13:08]}  Bxa3 {[%clk 0:05:11]} 36. Rb1 {[%clk 0:12:38]}  Qf5 {[%clk 0:03:56]} 37. Qxf5+ {[%clk 0:06:38]}  Kxf5 {[%clk 0:04:24]} 38. Ra1 {[%clk 0:07:01]}  Bb2 {[%clk 0:04:39]} 39. Rxa7 {[%clk 0:07:27]}  Bxd4 {[%clk 0:05:04]} 40. Ra5+ {[%clk 0:07:55]}  Kg6 {[%clk 0:04:24]} 41. Rd5 {[%clk 0:05:58]}  Be5 {[%clk 0:02:10]} 42. Rb1 {[%clk 0:01:26]}  Bc7 {[%clk 0:25:38]} 43. Rbd1 {[%clk 0:30:16]}  b6 {[%clk 0:24:05]} 44. Rd7 {[%clk 0:30:36]}  Be5 {[%clk 0:24:24]} 45. Rxf7 {[%clk 0:29:13]}  Kxf7 {[%clk 0:24:49]} 46. g3 {[%clk 0:29:08]}  Ke6 {[%clk 0:23:36]} 47. Kg2 {[%clk 0:26:27]}  Kf5 {[%clk 0:21:41]} 48. Kf3 {[%clk 0:25:41]}  Bc3 {[%clk 0:21:05]} 49. Rd5+ {[%clk 0:25:36]}  Ke6 {[%clk 0:21:09]} 50. Ke4 {[%clk 0:25:49]}  Be5 {[%clk 0:20:49]} 51. Rb5 {[%clk 0:25:14]}  f5+ {[%clk 0:20:58]} 52. Kd3 {[%clk 0:23:39]}  Bc7 {[%clk 0:21:21]} 53. h3 {[%clk 0:22:58]}  Bd8 {[%clk 0:21:26]} 54. Kc4 {[%clk 0:23:10]}  Bc7 {[%clk 0:21:15]} 55. Kd4 {[%clk 0:23:28]}  Bd8 {[%clk 0:21:05]} 56. Re5+ {[%clk 0:23:43]}  Kf6 {[%clk 0:21:25]} 57. Kd5 {[%clk 0:24:03]}  b5 {[%clk 0:21:26]} 58. Re6+ {[%clk 0:24:07]}  Kf7 {[%clk 0:21:47]} 59. Rc6 {[%clk 0:19:21]}  b4 {[%clk 0:21:32]} 60. Kc4 {[%clk 0:18:25]}  Be7 {[%clk 0:21:47]} 61. Rc7 {[%clk 0:14:34]}  Ke6 {[%clk 0:22:02]} 62. Rxe7+ {[%clk 0:14:38]}  Kxe7 {[%clk 0:22:28]} 63. Kxb4 {[%clk 0:15:04]}  Kd6 {[%clk 0:19:26]} 64. Kc4 {[%clk 0:15:25]}  Ke5 {[%clk 0:19:11]} 65. f3 {[%clk 0:13:41]}  f4 {[%clk 0:10:21]} 66. g4 {[%clk 0:14:04]}  Ke6 {[%clk 0:09:43]} 67. Kd4 {[%clk 0:14:28]}  Kd6 {[%clk 0:10:08]} 68. Ke4 {[%clk 0:14:53]}  Ke6 {[%clk 0:10:25]} 69. h4 {[%clk 0:15:17]}  gxh4 {[%clk 0:10:51]} 70. Kxf4 {[%clk 0:15:43]}  Kf6 {[%clk 0:11:12]} 71. Ke3 {[%clk 0:16:06]} 1-0


[Site "http://www.chessbomb.com"]